[Event "SixDays Budapest GM-A 09-2024"]
[Site "Budapest"]
[Date "2024.09.25"]
[Round "3.4"]
[White "Panda Sambit"]
[Black "Wachinger, Nikolas"]
[Result "1-0"]
[ECO "E49"]
[WhiteElo "2367"]
[BlackElo "2442"]
[Annotator "TA"]
[PlyCount "93"]
[EventDate "2024.09.24"]
[EventType "tourn"]
[EventCountry "HUN"]
[SourceTitle "playchess.com"]
[Source "ChessBase"]
[SourceQuality "1"]
[TimeControl "5400+30"]

{[%evp 23,93,0,7,7,16,16,31,22,48,35,36,26,47,52,55,39,47,46,34,29,29,35,27,30,22,16,21,0,0,0,0,0,0,-41,-33,-29998,0,0,12,21,20,0,22,24,32,0,89,11,15,-71,-77,-68,-70,-62,325,309,313,327,327,327,333,333,333,310,1458,302,2089,2202,1966,1646,1555,1460]} 1. d4 {[%emt 0:04:00]} Nf6 {[%emt 0:00:08]} 2. c4 {[%emt 0:00:06]} e6 {[%emt 0:00:06]} 3. Nc3 {[%emt 0:00:04]} Bb4 {[%emt 0:00:06]} 4. e3 {[%emt 0:00:05]} O-O {[%emt 0:00:30]} 5. Bd3 {[%emt 0:00:03]} d5 {[%emt 0:00:09]} 6. a3 {[%emt 0:00:03]} Bxc3+ {[%emt 0:00:08]} 7. bxc3 {[%emt 0:00:04]} dxc4 {[%emt 0:00:11]} 8. Bxc4 {[%emt 0:00:05]} c5 {[%emt 0:00:07]} 9. Nf3 {[%emt 0:00:04]} Qc7 {[%emt 0:00:09]} 10. Be2 {[%emt 0:00:04]} b6 {[%emt 0:02:59]} 11. Bb2 {[%emt 0:00:28]} Bb7 {[%emt 0:03:54]} 12. O-O {[%emt 0:00:09]} Nbd7 {[%emt 0:04:12]} 13. Nd2 {[%emt 0:02:19]} e5 {[%emt 0:03:28]} 14. Qb3 {[%emt 0:00:41]} Rfe8 {[%emt 0:06:08]} 15. a4 {[%emt 0:03:16] White is slightly better.} a6 {[%emt 0:16:49]} 16. Rfd1 {[%emt 0:21:51]} Rab8 {[%emt 0:02:18]} 17. Bc4 {[%emt 0:21:24]} Re7 {[%emt 0:06:12]} 18. d5 $1 {[%emt 0:15:45]} b5 {[%emt 0:03:06]} 19. axb5 {[%emt 0:01:23]} axb5 {[%emt 0:00:26]} 20. Bxb5 {[%emt 0:02:17]} (20. Qxb5 Bxd5 21. Qa6 Rxb2 $19 (21... Bxg2 22. Kxg2 Rxb2 23. Bf1 $17)) 20... Bxd5 {[%emt 0:00:24]} 21. c4 {[%emt 0:00:04]} Bc6 {[%emt 0:03:52]} 22. Ra6 {[%emt 0:06:15]} Re6 {[%emt 0:05:56]} 23. Rda1 {[%emt 0:00:23]} h6 {[%emt 0:17:21]} 24. Bc3 {[%emt 0:07:44]} Bxb5 {[%emt 0:04:29]} 25. cxb5 {[%emt 0:00:41]} (25. Rxe6 $5 Bc6 26. Ba5 $17) 25... Rxa6 {[%emt 0:00:08]} 26. Rxa6 {[%emt 0:00:06]} Qb7 {[%emt 0:00:36]} 27. Ra5 {[%emt 0:00:32]} Ne4 {[%emt 0:01:26]} 28. Qb2 {[%emt 0:10:26]} Qd5 {[%emt 0:01:28] White must now prevent ...Qd3.} 29. Nxe4 $4 {[%emt 0:01:12][%mdl 8192] [#]} (29. h3 $15) 29... Qxe4 $2 {[%emt 0:00:02]} (29... Qd1+ {mates} 30. Be1 Qxe1#) 30. h3 $11 {[%emt 0:00:08]} Nb6 {[%emt 0:01:29]} 31. Qa2 {[%emt 0:02:54]} (31. Bxe5 $2 {loses.} Nc4 32. Qc3 Nxe5 $19) 31... c4 {[%emt 0:07:20]} 32. Qa1 {[%emt 0:01:02]} Re8 {[%emt 0:02:14]} 33. Kh2 {[%emt 0:00:44]} Re6 {[%emt 0:00:37]} 34. Qd1 {[%emt 0:00:34]} Rf6 {[%emt 0:02:09] [#]} (34... Nd5 $11 35. f3 Qd3 36. Qxd3 cxd3 37. Ra8+ Kh7) 35. Be1 {[%emt 0:00:31]} (35. Ra2 $1 $16) 35... c3 {[%emt 0:01:27]} 36. Bxc3 {[%emt 0:00:31]} (36. Qb3 $11 {keeps the balance.}) 36... Rxf2 $17 {[%emt 0:00:08]} 37. Qg4 {[%emt 0:00:18]} Qxe3 {[%emt 0:00:34]} 38. Qg3 {[%emt 0:00:30]} Nc4 {[%emt 0:02:41][%mdl 8192]} (38... Re2 $1 $15 {keeps the upper hand.} 39. Qxe3 Rxe3) 39. Ra8+ {[%emt 0:00:40]} Kh7 {[%emt 0:00:02]} 40. Qxe3 {[%emt 0:00:20]} Nxe3 $18 {[%emt 0:00:02][%mdl 4096] Endgame. KRB-KRN} 41. b6 $1 {[%emt 0:00:30][%cal Bb5b6,Bb6b7][%mdl 32] Threatens to win with b7!} Rxg2+ {[%emt 0:04:53]} 42. Kh1 {[%emt 0:00:01][%cal Ob6b7] b7! is the strong threat.} Rf2 {[%emt 0:00:35] Strongly threatening ...Rf1+.} 43. b7 {[%emt 0:00:51]} Rf1+ {[%emt 0:00:29]} 44. Kh2 {[%emt 0:00:01]} e4 $2 {[%emt 0:00:06]} (44... Rb1) 45. Ra2 {[%emt 0:01:09] White is clearly winning.} ({Not} 45. b8=R Rf2+ 46. Kg3 Rf3+ 47. Kh2 Rf2+ 48. Kg3 Rf3+ 49. Kh2 Rf2+ $11) 45... Rb1 {[%emt 0:00:44]} 46. Rb2 {[%emt 0:00:24]} Nf1+ {[%emt 0:00:18]} 47. Kg1 {[%emt 0:00:42] Quite a comeback for White.   Weighted Error Value: White=0.37/Black=0.44.  Loses game:     	White=1     	Black=1      Missed win:     	---       	Black=1      Mistake:       	White=2     	Black=2      Inaccurate:     	White=3     	Black=1      OK:         	White=10    	Black=14     Best:        	White=2     	Black=4      Strong:       	White=2     	---} 1-0

[Event "SixDays Budapest GM-A 09-2024"]
[Site "Budapest"]
[Date "2024.09.25"]
[Round "3.5"]
[White "Defromont, Benjamin"]
[Black "Lee, Junhyeok"]
[Result "1-0"]
[ECO "B92"]
[WhiteElo "2383"]
[BlackElo "2364"]
[Annotator "TA"]
[PlyCount "81"]
[EventDate "2024.09.24"]
[EventType "tourn"]
[EventCountry "HUN"]
[SourceTitle "playchess.com"]
[Source "ChessBase"]
[SourceQuality "1"]
[TimeControl "5400+30"]

{[%evp 21,81,16,3,-12,-12,-84,-86,-133,-120,-127,-125,-120,-120,-149,-152,-155,-147,-193,-189,-200,-143,-151,-97,-93,-35,-101,-79,-145,-145,-141,-144,-122,-133,-183,-158,-179,0,0,118,0,0,-63,-79,-268,-266,-365,-227,-223,-227,-216,-208,-197,-204,-310,-316,-494,29993,29994,29994,29995,29995,29996]} 1. e4 {[%emt 0:01:14]} c5 {[%emt 0:00:07]} 2. Nf3 {[%emt 0:00:06]} d6 {[%emt 0:00:04]} 3. d4 {[%emt 0:00:08]} cxd4 {[%emt 0:00:05]} 4. Nxd4 {[%emt 0:00:04]} Nf6 {[%emt 0:00:05]} 5. Nc3 {[%emt 0:00:04]} a6 {[%emt 0:00:04]} 6. Be2 {[%emt 0:00:48]} e5 {[%emt 0:00:28]} 7. Nb3 {[%emt 0:00:12]} Be7 {[%emt 0:00:05]} 8. Be3 {[%emt 0:00:11]} Be6 {[%emt 0:00:19]} 9. Nd5 {[%emt 0:00:10]} Nbd7 {[%emt 0:01:59]} 10. Qd3 {[%emt 0:00:22]} Bxd5 {[%emt 0:02:11]} 11. exd5 {[%emt 0:00:07]} Rc8 {[%emt 0:00:29]} 12. g4 {[%emt 0:04:53]} Nb6 {[%emt 0:03:00]} 13. Bf3 {[%emt 0:05:01]} (13. O-O-O $11) 13... Nc4 $17 {[%emt 0:00:34]} 14. O-O-O {[%emt 0:01:09] [#]} (14. Nd2 $142 Nxe3 (14... Nxb2 15. Qb3 $18) 15. fxe3) 14... e4 $1 {[%emt 0:12:03][%mdl 512]} 15. Bxe4 {[%emt 0:00:05]} Ne5 $1 {[%emt 0:00:07] Excellent horsemanship.} 16. Qe2 {[%emt 0:00:15]} (16. Qd4 $2 Rc4 (16... Nfxg4 17. Nd2 $11) 17. Qa7 Nxe4 $19 (17... Rxe4 $2 18. Qxb7 O-O 19. h3 $19)) 16... Nxe4 {[%emt 0:00:03]} 17. f4 {[%emt 0:00:46][%cal Oe3d4]} Ng6 $1 {[%emt 0:04:14]} 18. Bd4 {[%emt 0:08:30]} Nf6 {[%emt 0:01:13]} (18... Nxf4 19. Qxe4 O-O 20. h4 $11 (20. Qxf4 $2 Bg5 $19)) 19. Qf3 {[%emt 0:13:01]} (19. Bxf6 $17 gxf6 20. h3) 19... O-O {[%emt 0:03:04]} 20. g5 {[%emt 0:04:03]} Nd7 {[%emt 0:02:06]} 21. h4 {[%emt 0:00:28]} Re8 {[%emt 0:02:50]} (21... Qc7 $142 {[%csl Gc8][%cal Rc7c2]} 22. Rh2 Nde5 23. fxe5 dxe5) 22. Kb1 {[%emt 0:05:41]} Ngf8 {[%emt 0:00:39]} ({Better is} 22... Bf8 $17 {aiming for ...Qc7.} 23. h5 Ne7) 23. h5 {[%emt 0:02:45]} ({White should try} 23. Nd2 $15) 23... Nc5 {[%emt 0:08:57]} 24. Rdf1 {[%emt 0:15:07]} (24. Bxc5 $142 dxc5 25. Nd2) 24... Nxb3 {[%emt 0:08:47]} 25. axb3 {[%emt 0:02:06]} Qd7 {[%emt 0:02:32]} 26. Qd3 {[%emt 0:06:30] Wards off Qf5} Bd8 $1 {[%emt 0:01:44]} 27. Rhg1 {[%emt 0:06:37]} (27. Bc3 $17 {might work better.}) 27... Qe7 $1 $19 {[%emt 0:14:37]} 28. Qh3 {[%emt 0:04:09]} Ba5 $2 {[%emt 0:01:45]} (28... Rc7 $1 $19 {Hoping for ...Qe2.} 29. Bc3 Qe3) 29. g6 $1 $16 {[%emt 0:06:00]} fxg6 {[%emt 0:03:32]} (29... hxg6 $2 30. hxg6 Nxg6 31. f5 $18) 30. hxg6 {[%emt 0:01:25] White is more active.} (30. f5 $16 Qe4 31. hxg6) 30... h6 $1 $11 {[%emt 0:02:27] Strongly threatening ...Qe4.} (30... hxg6 $2 31. Rh1 Kf7 32. f5 $18 (32. Qh8 Ne6 $16)) (30... Nxg6 $2 31. f5 Qd7 32. Rg4 Re1+ (32... Ne5 $2 33. Bxe5 Rxe5 34. f6 $18) 33. Rxe1 Bxe1 34. fxg6 $18) 31. Qf5 {[%emt 0:04:51]} (31. f5 $11 Qe4 32. Bxg7 Qxc2+ 33. Ka1) 31... Rc7 $15 {[%emt 0:00:41]} 32. Rf3 $2 {[%emt 0:02:42]} (32. Rg2 $17) 32... Qd7 $1 $19 {[%emt 0:03:10]} (32... Qe4 $2 33. Qf7+ Rxf7 34. gxf7+ Kh8 35. fxe8=Q (35. fxe8=R Qxe8 36. Rfg3 Qe4 $18) (35. Re3 $2 Qxe3 36. Rxg7 Qxd4 $19) 35... Qxe8 36. Rfg3 $18 (36. Rh3 Qf7 $16)) 33. Qh5 {[%emt 0:03:20]} Re4 {[%emt 0:04:46]} 34. f5 {[%emt 0:02:07][%cal Of5f6] f6! would now be deadly.} Rxd4 {[%emt 0:03:23]} 35. f6 {[%emt 0:00:04] White wants to mate with f7+.} gxf6 {[%emt 0:12:59]} 36. Rxf6 {[%emt 0:00:02][%cal Og6g7] [#] g7! is the strong threat.} Bd2 $1 {[%emt 0:00:07]} ({Inferior is} 36... Qg7 37. Rgf1 Bd2 38. Rxf8+ Qxf8 39. Rxf8+ Kxf8 40. c3 $11) 37. Qf3 {[%emt 0:02:29] Prevents Rf4.} (37. g7 $142 Nh7 38. Rxd6) 37... Qe8 {[%emt 0:02:13] And now ...Bg5 would win.} 38. Rf7 {[%emt 0:00:40]} (38. Rf1 {only move.} Nd7 (38... Nxg6 $2 39. Re6 $19) 39. Re6) 38... Re7 $4 {[%emt 0:00:34][%mdl 8192]} (38... Nd7 $19 39. Ka2 Rxc2) 39. Qf6 $1 {[%emt 0:00:18][%csl Gf7,LRd4,LRd6,LRe7][%cal Rf6g7] White mates.} Re1+ {[%emt 0:01:22] [#]} 40. Rxe1 $1 {[%emt 0:00:08]} (40. Ka2 $2 {leads to mate.} Ra4+ 41. bxa4 Qxa4#) 40... Qxe1+ {[%emt 0:00:28]} 41. Ka2 {[%emt 0:00:05] What a bad dream for Black.   Weighted Error Value: White=0.44/Black=0.28 (precise) .  Loses game:     	White=1     	---        Missed win:     	---       	Black=2      Mistake:       	White=10    	Black=2      Inaccurate:     	White=1     	Black=1      OK:         	White=7     	Black=7      Best:        	White=3     	Black=4      Strong:       	White=1     	Black=7      Brilliant:      	---       	Black=1} 1-0

[Event "SixDays Budapest GM-A 09-2024"]
[Site "Budapest"]
[Date "2024.09.26"]
[Round "4.1"]
[White "Plat, Vojtech"]
[Black "Lee, Junhyeok"]
[Result "1/2-1/2"]
[ECO "B22"]
[WhiteElo "2483"]
[BlackElo "2364"]
[Annotator "RC"]
[PlyCount "102"]
[EventDate "2024.09.24"]
[EventType "tourn"]
[EventCountry "HUN"]
[SourceTitle "playchess.com"]
[Source "ChessBase"]
[SourceQuality "1"]
[TimeControl "5400+30"]

1. e4 {[%emt 0:05:57]} c5 {[%emt 0:01:07]} 2. c3 {[%emt 0:00:14]} Nf6 {[%emt 0:02:48]} 3. e5 {[%emt 0:00:07]} Nd5 {[%emt 0:00:02]} 4. Nf3 {[%emt 0:00:08]} Nc6 {[%emt 0:00:05]} 5. Bc4 {[%emt 0:00:06]} Nb6 {[%emt 0:00:05]} 6. Bb3 {[%emt 0:00:02]} d6 {[%emt 0:01:05]} 7. exd6 {[%emt 0:00:10]} Qxd6 {[%emt 0:00:07]} 8. O-O {[%emt 0:00:04]} Be6 {[%emt 0:00:29]} 9. Bxe6 {[%emt 0:00:06]} Qxe6 {[%emt 0:00:05]} 10. a4 {[%emt 0:00:04]} Qd7 {[%emt 0:00:42]} 11. a5 {[%emt 0:00:12]} Nd5 {[%emt 0:00:04]} 12. a6 {[%emt 0:03:53]} e6 {[%emt 0:00:25]} 13. d4 {[%emt 0:01:09]} cxd4 {[%emt 0:00:28]} 14. Nxd4 {[%emt 0:00:15]} Bc5 {[%emt 0:00:20]} 15. Nb3 {[%emt 0:00:32]} Be7 {[%emt 0:06:04]} 16. c4 {[%emt 0:06:56]} Ndb4 {[%emt 0:06:38]} 17. Qxd7+ {[%emt 0:03:41]} Kxd7 {[%emt 0:00:05]} 18. axb7 {[%emt 0:00:07]} Rab8 {[%emt 0:00:11]} 19. Rd1+ {[%emt 0:00:36]} Kc7 {[%emt 0:04:09]} 20. Nc3 {[%emt 0:07:15]} Rbd8 {[%emt 0:09:13]} 21. Be3 {[%emt 0:10:00]} Nc2 {[%emt 0:06:22]} 22. Bf4+ {[%emt 0:00:29]} Kxb7 {[%emt 0:00:20]} 23. Rac1 {[%emt 0:00:39]} N2b4 {[%emt 0:01:59]} 24. Ne4 {[%emt 0:00:36]} e5 {[%emt 0:06:04]} 25. Be3 {[%emt 0:01:15]} f5 {[%emt 0:02:55]} 26. Nec5+ {[%emt 0:00:18]} Kc8 {[%emt 0:00:21]} 27. Ne6 {[%emt 0:00:16]} Rd3 {[%emt 0:01:47]} 28. Rxd3 {[%emt 0:03:25]} Nxd3 {[%emt 0:00:06]} 29. Ra1 {[%emt 0:00:07]} g6 {[%emt 0:06:29]} 30. Bxa7 {[%emt 0:06:10]} Nxb2 {[%emt 0:02:41]} 31. Be3 {[%emt 0:05:49]} Kd7 {[%emt 0:03:05]} 32. Nbc5+ {[%emt 0:00:32]} Bxc5 {[%emt 0:00:20]} 33. Nxc5+ {[%emt 0:00:03]} Kd6 {[%emt 0:04:12]} 34. Rb1 {[%emt 0:08:48]} Ra8 {[%emt 0:13:17]} 35. g3 {[%emt 0:02:33]} Ra2 {[%emt 0:02:51]} 36. Nb7+ {[%emt 0:00:36]} Kc7 {[%emt 0:00:53]} 37. Nc5 {[%emt 0:00:03]} Nxc4 {[%emt 0:05:38]} 38. Rb7+ {[%emt 0:00:07]} Kc8 {[%emt 0:00:09]} 39. Rxh7 {[%emt 0:00:29]} Nxe3 {[%emt 0:00:20]} 40. fxe3 {[%emt 0:00:01]} e4 {[%emt 0:00:22]} 41. h4 {[%emt 0:04:32]} Ne5 {[%emt 0:02:22]} 42. h5 {[%emt 0:00:09]} Ra1+ {[%emt 0:01:30]} 43. Kg2 {[%emt 0:00:28]} gxh5 {[%emt 0:00:31]} 44. Rh8+ {[%emt 0:01:33]} Kc7 {[%emt 0:00:06]} 45. Ne6+ {[%emt 0:00:01]} Kd7 {[%emt 0:00:59]} 46. Nd4 {[%emt 0:00:17]} Ra2+ {[%emt 0:02:31]} 47. Kg1 {[%emt 0:00:16]} Ng4 {[%emt 0:01:03]} 48. Rh7+ {[%emt 0:00:37]} Ke8 {[%emt 0:00:35]} 49. Nxf5 {[%emt 0:00:15]} Ra1+ {[%emt 0:00:13]} 50. Kg2 {[%emt 0:00:01]} Ra2+ {[%emt 0:01:01]} 51. Kg1 {[%emt 0:00:01]} Ra1+ {[%emt 0:00:07]} 1/2-1/2

[Event "SixDays Budapest GM-A 09-2024"]
[Site "Budapest"]
[Date "2024.09.26"]
[Round "4.2"]
[White "Wachinger, Nikolas"]
[Black "Defromont, Benjamin"]
[Result "1/2-1/2"]
[ECO "B01"]
[WhiteElo "2442"]
[BlackElo "2383"]
[Annotator "RC"]
[PlyCount "79"]
[EventDate "2024.09.24"]
[EventType "tourn"]
[EventCountry "HUN"]
[SourceTitle "playchess.com"]
[Source "ChessBase"]
[SourceQuality "1"]
[TimeControl "5400+30"]

1. e4 {[%emt 0:09:02]} d5 {[%emt 0:01:25]} 2. exd5 {[%emt 0:00:06]} Qxd5 {[%emt 0:00:06]} 3. Nc3 {[%emt 0:00:11]} Qd8 {[%emt 0:00:06]} 4. d4 {[%emt 0:00:21]} Nf6 {[%emt 0:00:08]} 5. Nf3 {[%emt 0:00:39]} g6 {[%emt 0:00:14]} 6. Bc4 {[%emt 0:01:42]} Bg7 {[%emt 0:00:06]} 7. O-O {[%emt 0:00:12]} O-O {[%emt 0:00:18]} 8. Re1 {[%emt 0:02:17]} a6 {[%emt 0:05:34]} 9. a4 {[%emt 0:01:57]} Nc6 {[%emt 0:04:30]} 10. a5 {[%emt 0:10:15]} b5 {[%emt 0:08:44]} 11. axb6 {[%emt 0:02:35]} cxb6 {[%emt 0:00:07]} 12. Bf4 {[%emt 0:11:29]} Bb7 {[%emt 0:09:52]} 13. d5 {[%emt 0:06:07]} Nb4 {[%emt 0:06:08]} 14. d6 {[%emt 0:00:11]} exd6 {[%emt 0:00:45]} 15. Bxd6 {[%emt 0:00:50]} Nxc2 {[%emt 0:02:23]} 16. Bxf8 {[%emt 0:04:35]} Nxe1 {[%emt 0:02:55]} 17. Qxe1 {[%emt 0:13:46]} Kxf8 {[%emt 0:01:05]} 18. Ng5 {[%emt 0:10:51]} Qc7 {[%emt 0:06:45]} 19. Bxf7 {[%emt 0:01:51]} Qc6 {[%emt 0:06:48]} 20. Nf3 {[%emt 0:02:10]} Rd8 {[%emt 0:13:02]} 21. Bb3 {[%emt 0:00:58]} Ne4 {[%emt 0:04:33]} 22. Nxe4 {[%emt 0:05:29]} Qxe4 {[%emt 0:00:03]} 23. Qxe4 {[%emt 0:00:04]} Bxe4 {[%emt 0:00:04]} 24. Ng5 {[%emt 0:00:05]} Bf5 {[%emt 0:10:11]} 25. Nxh7+ {[%emt 0:03:36]} Ke7 {[%emt 0:00:03]} 26. Rxa6 {[%emt 0:00:09]} Bxb2 {[%emt 0:01:01]} 27. Rxb6 {[%emt 0:01:36]} Rd2 {[%emt 0:02:37]} 28. g4 {[%emt 0:09:13]} Bxg4 {[%emt 0:04:03]} 29. Ng5 {[%emt 0:00:02]} Bd4 {[%emt 0:03:47]} 30. Rb7+ {[%emt 0:00:27]} Kd8 {[%emt 0:00:19]} 31. Rf7 {[%emt 0:00:32]} Bf5 {[%emt 0:01:04]} 32. Ne6+ {[%emt 0:00:57]} Bxe6 {[%emt 0:00:12]} 33. Bxe6 {[%emt 0:00:03]} g5 {[%emt 0:02:29]} 34. Kg2 {[%emt 0:00:12]} Ke8 {[%emt 0:00:59]} 35. Rf5 {[%emt 0:00:50]} Ke7 {[%emt 0:01:38]} 36. Bc4 {[%emt 0:00:20]} Rxf2+ {[%emt 0:00:57]} 37. Rxf2 {[%emt 0:00:14]} Bxf2 {[%emt 0:00:03]} 38. Kxf2 {[%emt 0:00:09]} g4 {[%emt 0:00:03]} 39. Kg3 {[%emt 0:00:13]} Kf6 {[%emt 0:00:05]} 40. Kxg4 {[%emt 0:00:10]} 1/2-1/2

[Event "SixDays Budapest GM-A 09-2024"]
[Site "Budapest"]
[Date "2024.09.26"]
[Round "4.3"]
[White "Berczes, David"]
[Black "Panda Sambit"]
[Result "1-0"]
[ECO "A46"]
[WhiteElo "2400"]
[BlackElo "2367"]
[Annotator "RC"]
[PlyCount "81"]
[EventDate "2024.09.24"]
[EventType "tourn"]
[EventCountry "HUN"]
[SourceTitle "playchess.com"]
[Source "ChessBase"]
[SourceQuality "1"]
[TimeControl "5400+30"]

1. d4 {[%emt 0:13:10]} Nf6 {[%emt 0:00:16]} 2. Nf3 {[%emt 0:00:09]} e6 {[%emt 0:00:11]} 3. g3 {[%emt 0:00:14]} b5 {[%emt 0:01:01]} 4. e3 {[%emt 0:01:39]} a6 {[%emt 0:02:45]} 5. a4 {[%emt 0:02:01]} b4 {[%emt 0:06:33]} 6. Bg2 {[%emt 0:07:32]} Bb7 {[%emt 0:00:02]} 7. O-O {[%emt 0:00:07]} c5 {[%emt 0:12:57]} 8. c4 {[%emt 0:02:40]} d5 {[%emt 0:00:35]} 9. Ne5 {[%emt 0:03:00]} Nbd7 {[%emt 0:05:02]} 10. Nd2 {[%emt 0:16:45]} Qc7 {[%emt 0:02:33]} 11. cxd5 {[%emt 0:11:53]} exd5 {[%emt 0:16:55]} 12. Nxd7 {[%emt 0:02:52]} Qxd7 {[%emt 0:05:02]} 13. dxc5 {[%emt 0:03:44]} Bxc5 {[%emt 0:00:02]} 14. Nb3 {[%emt 0:00:11]} Bd6 {[%emt 0:00:01]} 15. Na5 {[%emt 0:02:18]} O-O {[%emt 0:00:10]} 16. Nxb7 {[%emt 0:07:08]} Qxb7 {[%emt 0:00:07]} 17. e4 {[%emt 0:01:17]} Rac8 {[%emt 0:02:07]} 18. exd5 {[%emt 0:01:33]} b3 {[%emt 0:00:01]} 19. Bg5 {[%emt 0:08:31]} Nd7 {[%emt 0:01:00]} 20. Be7 {[%emt 0:05:25]} Bxe7 {[%emt 0:01:13]} 21. d6 {[%emt 0:00:04]} Qb4 {[%emt 0:00:16]} 22. dxe7 {[%emt 0:00:06]} Qxe7 {[%emt 0:00:05]} 23. Re1 {[%emt 0:01:07]} Qd8 {[%emt 0:00:13]} 24. Bh3 {[%emt 0:02:28]} Rc7 {[%emt 0:00:22]} 25. Qxb3 {[%emt 0:01:39]} Nc5 {[%emt 0:00:20]} 26. Qb6 {[%emt 0:03:07]} Qb8 {[%emt 0:02:04]} 27. Qxb8 {[%emt 0:01:44]} Rxb8 {[%emt 0:00:03]} 28. Rac1 {[%emt 0:00:52]} g6 {[%emt 0:01:34]} 29. Rc3 {[%emt 0:01:12]} f5 {[%emt 0:08:37]} 30. Rec1 {[%emt 0:00:22]} Rbc8 {[%emt 0:00:04]} 31. b4 {[%emt 0:00:37]} Ne6 {[%emt 0:00:06]} 32. Rxc7 {[%emt 0:00:03]} Rxc7 {[%emt 0:00:03]} 33. Rxc7 {[%emt 0:00:14]} Nxc7 {[%emt 0:00:06]} 34. Bf1 {[%emt 0:00:46]} Kf7 {[%emt 0:00:18]} 35. Bc4+ {[%emt 0:00:02]} Ke7 {[%emt 0:00:09]} 36. f4 {[%emt 0:00:35]} h6 {[%emt 0:00:05]} 37. Kf2 {[%emt 0:00:49]} g5 {[%emt 0:02:11]} 38. Ke3 {[%emt 0:00:17]} Kd7 {[%emt 0:01:22]} 39. Kd4 {[%emt 0:01:12]} Kd6 {[%emt 0:00:05]} 40. h3 {[%emt 0:00:30]} gxf4 {[%emt 0:02:26]} 41. gxf4 {[%emt 0:00:02]} 1-0

[Event "SixDays Budapest GM-A 09-2024"]
[Site "Budapest"]
[Date "2024.09.26"]
[Round "4.4"]
[White "Nagy, Gabor"]
[Black "Chen, Yining"]
[Result "1/2-1/2"]
[ECO "D11"]
[WhiteElo "2459"]
[BlackElo "2252"]
[Annotator "RC"]
[PlyCount "104"]
[EventDate "2024.09.24"]
[EventType "tourn"]
[EventCountry "HUN"]
[SourceTitle "playchess.com"]
[Source "ChessBase"]
[SourceQuality "1"]
[TimeControl "5400+30"]

1. c4 {[%emt 0:02:08]} c6 {[%emt 0:00:11]} 2. Nf3 {[%emt 0:02:03]} d5 {[%emt 0:00:07]} 3. d4 {[%emt 0:00:22]} Nf6 {[%emt 0:00:08]} 4. e3 {[%emt 0:00:22]} e6 {[%emt 0:00:09]} 5. b3 {[%emt 0:00:28]} Ne4 {[%emt 0:00:24]} 6. Bd3 {[%emt 0:00:41]} Bb4+ {[%emt 0:00:27]} 7. Nfd2 {[%emt 0:01:05]} Nd7 {[%emt 0:08:38]} 8. Bxe4 {[%emt 0:03:29]} dxe4 {[%emt 0:00:06]} 9. O-O {[%emt 0:00:22]} f5 {[%emt 0:02:15]} 10. Ba3 {[%emt 0:00:15]} Bxa3 {[%emt 0:04:19]} 11. Nxa3 {[%emt 0:01:08]} e5 {[%emt 0:07:24]} 12. Qh5+ {[%emt 0:08:10]} g6 {[%emt 0:03:34]} 13. Qh6 {[%emt 0:01:10]} Qe7 {[%emt 0:13:24]} 14. c5 {[%emt 0:00:32]} Qf8 {[%emt 0:03:31]} 15. Qxf8+ {[%emt 0:01:13]} Kxf8 {[%emt 0:01:25]} 16. Nac4 {[%emt 0:00:17]} exd4 {[%emt 0:00:16]} 17. exd4 {[%emt 0:00:12]} Nf6 {[%emt 0:07:02]} 18. Nd6 {[%emt 0:01:06]} Ne8 {[%emt 0:09:14]} 19. N2c4 {[%emt 0:03:40]} Nxd6 {[%emt 0:01:25]} 20. Nxd6 {[%emt 0:00:08]} b6 {[%emt 0:01:23]} 21. Rfc1 {[%emt 0:03:33]} Ke7 {[%emt 0:02:49]} 22. f3 {[%emt 0:02:03]} exf3 {[%emt 0:01:52]} 23. Re1+ {[%emt 0:01:15]} Be6 {[%emt 0:03:16]} 24. d5 {[%emt 0:03:21]} cxd5 {[%emt 0:00:36]} 25. Nb5 {[%emt 0:00:11]} bxc5 {[%emt 0:11:43]} 26. Nc7 {[%emt 0:00:13]} Kd6 {[%emt 0:00:06]} 27. Nxe6 {[%emt 0:00:15]} fxg2 {[%emt 0:00:43]} 28. Ng5 {[%emt 0:00:08]} Rhe8 {[%emt 0:00:22]} 29. Kxg2 {[%emt 0:00:18]} a5 {[%emt 0:02:16]} 30. Nxh7 {[%emt 0:03:24]} a4 {[%emt 0:01:55]} 31. Ng5 {[%emt 0:00:13]} d4 {[%emt 0:02:30]} 32. h4 {[%emt 0:07:13]} Kd5 {[%emt 0:01:49]} 33. Rxe8 {[%emt 0:11:20]} Rxe8 {[%emt 0:00:01]} 34. Kf2 {[%emt 0:00:31]} Re3 {[%emt 0:03:21]} 35. Rb1 {[%emt 0:02:19]} Rc3 {[%emt 0:01:06]} 36. Rb2 {[%emt 0:05:13]} axb3 {[%emt 0:00:57]} 37. axb3 {[%emt 0:00:12]} Ke5 {[%emt 0:01:41]} 38. b4 {[%emt 0:03:11]} cxb4 {[%emt 0:00:17]} 39. Rxb4 {[%emt 0:00:16]} Rc2+ {[%emt 0:01:29]} 40. Kg3 {[%emt 0:02:11]} f4+ {[%emt 0:01:44]} 41. Kg4 {[%emt 0:00:43]} Rg2+ {[%emt 0:00:50]} 42. Kf3 {[%emt 0:00:14]} Rg3+ {[%emt 0:00:13]} 43. Kf2 {[%emt 0:00:05]} Kf5 {[%emt 0:01:38]} 44. Rxd4 {[%emt 0:01:56]} Kg4 {[%emt 0:00:11]} 45. Ne6 {[%emt 0:02:06]} Rf3+ {[%emt 0:00:09]} 46. Kg2 {[%emt 0:00:18]} Rg3+ {[%emt 0:00:04]} 47. Kh2 {[%emt 0:00:09]} Rh3+ {[%emt 0:00:04]} 48. Kg2 {[%emt 0:00:15]} Rg3+ {[%emt 0:00:04]} 49. Kf2 {[%emt 0:00:07]} Rf3+ {[%emt 0:00:05]} 50. Kg2 {[%emt 0:00:09]} Rg3+ {[%emt 0:00:08]} 51. Kh2 {[%emt 0:00:16]} Rh3+ {[%emt 0:00:09]} 52. Kg2 {[%emt 0:00:04]} Rg3+ {[%emt 0:00:13]} 1/2-1/2